fUST/lending_fUST_20240401
["ID","MTS","AMOUNT","RATE_DAILY","PERIOD"]
[321132929,1711907440988,-500.0,0.00091997,120]
[321132931,1711907440997,-500.0,0.00091997,120]
[321132933,1711907441006,-500.0,0.00091997,120]
[321132936,1711907441015,-500.0,0.00091997,120]
[321132938,1711907441024,-500.0,0.00091997,120]
[321132940,1711907441033,-500.0,0.00091997,120]
[321132942,1711907441042,-500.0,0.00091997,120]
[321132944,1711907441052,-500.0,0.00091997,120]
[321132946,1711907441060,-500.0,0.00091997,120]
[321132948,1711907441069,-500.0,0.00091997,120]
[321132950,1711907441078,-500.0,0.00091997,120]
[321132952,1711907441087,-151.0,0.00092,120]
[321132954,1711907441096,-151.0,0.00092,120]
[321132955,1711907441106,-166.666666,0.0009283,2]
[321132958,1711907441115,-250.0,0.00092914,120]
[321132960,1711907441124,-2057.06,0.0009332,120]
[321132962,1711907441133,-600.50976435,0.00093349,2]
[321132964,1711907441142,-1093.58112431,0.00093584,120]
[321132966,1711907441151,-445.76467993,0.00094221,30]
[321132967,1711907441160,-301.87541469,0.00094231,120]
[321133530,1711907446554,-198.12458531,0.00094231,120]
[321133532,1711907446563,-445.10116552,0.00094231,120]
[321133534,1711907446573,-362.71650062,0.00094231,120]
[321133536,1711907446581,-262.56526786,0.00094231,120]
[321133538,1711907446590,-279.909851,0.00094232,10]
[321133540,1711907446599,-279.909851,0.00094232,10]
[321133542,1711907446607,-151.0,0.00094232,120]
[321133543,1711907446616,-151.0,0.00094232,120]
[321133545,1711907446626,-151.0,0.00094232,120]
[321133547,1711907446635,-151.0,0.00094232,120]
[321133549,1711907446644,-185.0,0.00094232,2]
[321133551,1711907446653,-23864.9566979,0.00094232,30]
[321133553,1711907446662,-187.21544978,0.00094487,2]
[321133555,1711907446671,-1000.0,0.00094587,9]
[321133557,1711907446680,-600.50976435,0.000948,2]
[321133560,1711907446690,-279.909851,0.0009513,10]
[321133561,1711907446699,-279.909851,0.0009513,10]
[321133563,1711907446708,-166.666666,0.00095293,2]
[321133565,1711907446717,-200.0,0.00095587,11]
[321133567,1711907446726,-200.0,0.00095587,10]
[321133569,1711907446735,-200.0,0.00095587,9]
[321133571,1711907446744,-600.50976435,0.0009625,2]
[321133573,1711907446753,-187.21544976,0.00096509,2]
[321133575,1711907446762,-500.0,0.000972,120]
[321133577,1711907446771,-151.0,0.000972,120]
[321133579,1711907446780,-151.0,0.000972,120]
[321133581,1711907446789,-193.33644,0.000972,120]
[321133583,1711907446798,-193.33644,0.000972,120]
[321133585,1711907446807,-185.0,0.00097232,2]
[321133587,1711907446816,-18738.15902254,0.00097313,120]
[321133589,1711907446826,-18738.15902254,0.00097367,120]
[321133591,1711907446835,-18738.15902254,0.00097416,120]
[321133593,1711907446845,-18738.15902254,0.0009743,120]
[321133595,1711907446854,-18738.15902254,0.00097528,120]
[321133597,1711907446864,-18738.15902254,0.00097609,120]
[321133599,1711907446873,-18738.15902254,0.00097616,120]
[321133609,1711907446956,-600.50976435,0.000977,2]
[321133611,1711907446968,-166.666666,0.00097757,2]
[321133613,1711907446978,-1323.95983606,0.00097782,120]
[321138818,1711907520081,11424.47511112,0.00070673,2]
[321138819,1711907520102,2825.31037675,0.00070673,2]
[321138823,1711907538006,182.77026679,0.00055959,120]
[321138853,1711907612245,-2918.13327754,0.00055959,120]
[321138854,1711907629664,2640.49036368,0.0002,2]
[321138857,1711907653178,341.41695512,0.000195,2]
[321138858,1711907654501,18024.50543091,0.00043333,2]
[321138859,1711907654526,1872.84217738,0.00043333,2]
[321138860,1711907661549,736.42801223,0.000351,2]
[321138878,1711907670840,255.00026525,0.0003624,2]
[321138879,1711907671749,4988.0,0.0004,2]
[321138881,1711907673839,3955.33717745,0.00035,2]
[321138883,1711907676399,4781.92769219,0.0004,2]
[321138884,1711907676832,354.25574024,0.0004,2]
[321138885,1711907677356,8056.20893526,0.0004013,2]
[321138886,1711907677382,14888.72303558,0.0004013,2]
[321138887,1711907677412,24835.242006,0.0004013,2]
[321138888,1711907678019,25000.0,0.0004,2]
[321138890,1711907683332,-5000.0,0.0004,2]
[321138891,1711907683356,-657.29811272,0.0004,30]
[321138892,1711907683379,-51485.70188728,0.0004013,2]
[321138894,1711907701231,3593.0,0.00034749,2]
[321138895,1711907704357,21407.0,0.000351,4]
[321138896,1711907704385,4241.61264982,0.000351,4]
[321138897,1711907720368,3474.38735018,0.000351,4]
[321138901,1711908258021,-300.0,0.00037696,120]
[321138902,1711908276463,-9.98743352,0.00037696,120]
[321138903,1711908276488,-326.81368622,0.00038812,15]
[321138904,1711908276513,-631.37056829,0.00038812,15]
[321138905,1711908276539,-631.37056829,0.00038812,15]
[321138906,1711908276564,-631.37056829,0.00038812,15]
[321138907,1711908276590,-631.37056829,0.00038812,15]
[321138908,1711908276614,-137.7166071,0.00038812,15]
[321138909,1711908350524,-493.65396119,0.00038812,15]
[321138910,1711908350549,-631.37056829,0.00038812,15]
[321138911,1711908350574,-631.37056829,0.00038812,15]
[321138912,1711908350602,-631.37056829,0.00038812,15]
[321138913,1711908350627,-612.23433394,0.00038812,15]
[321138914,1711908353918,-19.13623435,0.00038812,15]
[321138915,1711908353943,-631.37056829,0.00038812,15]
[321138916,1711908353968,-631.37056829,0.00038812,15]
[321138917,1711908353993,-631.37056829,0.00038812,15]
[321138918,1711908354018,-631.37056829,0.00038812,15]
[321138919,1711908354043,-455.38149249,0.00038812,15]
[321138921,1711908407506,-544.73857948,0.00038811,15]
[321138922,1711908407533,-455.26142052,0.00038811,15]
[321138923,1711908409381,-89.47715896,0.00038811,15]
[321138924,1711908409407,-544.73857948,0.00038811,15]
[321138925,1711908409432,-365.78426156,0.00038811,15]
[321138926,1711908422137,-178.95431792,0.00038811,15]
[321138927,1711908422162,-544.73857948,0.00038811,15]
[321138928,1711908422186,-276.3071026,0.00038811,15]
[321138929,1711908444132,-683.65730643,0.00037796,2]
[321138930,1711908444152,-2078.390746,0.00037812,2]
[321138931,1711908444171,-82.29908759,0.00037813,2]
[321138932,1711908446105,-1296.18691101,0.00037813,2]
[321138933,1711908446126,-24.67725434,0.00037899,2]
[321138943,1711908524141,-514.73857948,0.0003881,15]
[321138944,1711908524166,-485.26142052,0.0003881,15]
[321138945,1711908556154,-5000.0,0.00037477,2]
[321138946,1711908556176,-189.6253835,0.00037855,2]
[321138947,1711908556200,-883.37658826,0.00037899,2]
[321138948,1711908556220,-320.37993235,0.00038711,2]
[321138949,1711908559514,1000.0,0.00039,120]
[321138950,1711908563154,-778.58540325,0.00038711,2]
[321138951,1711908563176,-400.0,0.00038809,5]
[321138952,1711908563197,-235.0,0.0003881,2]
[321138953,1711908563218,-29.47715896,0.0003881,15]
[321138954,1711908563240,-514.73857948,0.0003881,15]
[321138955,1711908563264,-514.73857948,0.0003881,15]
[321138956,1711908563287,-514.73857948,0.0003881,15]
[321138957,1711908563308,-514.73857948,0.0003881,15]
[321138958,1711908563334,-155.28123259,0.0003881,15]
[321139042,1711908638841,-500.0,0.00038435,15]
[321139044,1711908638850,-194.34,0.00038435,15]
[321139047,1711908638863,-305.66,0.00038435,15]
[321139049,1711908638872,-500.0,0.00038435,15]
[321139050,1711908638882,-500.0,0.00038435,15]
[321139052,1711908638891,-337.54715162,0.00038435,15]
[321139055,1711908638902,-162.45284838,0.00038435,15]
[321139057,1711908638911,-500.0,0.00038435,15]
[321139058,1711908638920,-500.0,0.00038435,15]
[321139060,1711908638930,-500.0,0.00038435,15]
[321139062,1711908638939,-500.0,0.00038435,15]
[321139064,1711908638948,-500.0,0.00038435,15]
[321139066,1711908638957,-500.0,0.00038435,15]
[321139068,1711908638966,-500.0,0.00038435,15]
[321139070,1711908638974,-500.0,0.00038435,15]
[321139072,1711908638983,-94.55803756,0.00038435,15]
[321139074,1711908638995,-405.44196244,0.00038435,15]
[321139076,1711908639004,-500.0,0.00038435,15]
[321139078,1711908639013,-500.0,0.00038435,15]
[321139080,1711908639022,-500.0,0.00038435,15]
[321139082,1711908639031,-420.07280483,0.00038435,15]
[321139358,1711908641548,-79.92719517,0.00038435,15]
[321139360,1711908641557,-500.0,0.00038435,15]
[321139362,1711908641566,-500.0,0.00038435,15]
[321139364,1711908641575,-500.0,0.00038435,15]
[321139366,1711908641584,-500.0,0.00038435,15]
[321139368,1711908641594,-500.0,0.00038435,15]
[321139371,1711908641603,-500.0,0.00038435,15]
[321139372,1711908641612,-500.0,0.00038435,15]
[321139374,1711908641621,-500.0,0.00038435,15]
[321139376,1711908641630,-500.0,0.00038435,15]
[321139378,1711908641639,-500.0,0.00038435,15]
[321139380,1711908641648,-500.0,0.00038435,15]
[321139382,1711908641657,-500.0,0.00038435,15]
[321139384,1711908641665,-500.0,0.00038435,15]
[321139386,1711908641675,-500.0,0.00038435,15]
[321139388,1711908641687,-500.0,0.00038435,15]
[321139390,1711908641696,-500.0,0.00038435,15]
[321139392,1711908641705,-500.0,0.00038435,15]
[321139394,1711908641714,-500.0,0.00038435,15]
[321139396,1711908641723,-500.0,0.00038435,15]
[321139398,1711908641733,-500.0,0.00038435,15]
[321139400,1711908641742,-106.6268922,0.00038435,15]
[321139402,1711908641755,-393.3731078,0.00038435,15]
[321139404,1711908641764,-500.0,0.00038435,15]
[321139406,1711908641773,-500.0,0.00038435,15]
[321139408,1711908641783,-500.0,0.00038435,15]
[321139411,1711908641793,-500.0,0.00038435,15]
[321139413,1711908641803,-500.0,0.00038435,15]
[321139414,1711908641811,-500.0,0.00038435,15]
[321139416,1711908641821,-500.0,0.00038435,15]
[321139419,1711908641831,-500.0,0.00038435,15]
[321139421,1711908641840,-500.0,0.00038435,15]
[321139423,1711908641849,-500.0,0.00038435,15]
[321139425,1711908641858,-500.0,0.00038435,15]
[321139427,1711908641867,-500.0,0.00038435,15]
[321139429,1711908641875,-500.0,0.00038435,15]
[321139431,1711908641885,-407.13071492,0.00038435,15]
[321139432,1711908641894,-500.0,0.00038435,15]
[321139434,1711908641904,-24900.0,0.00038436,2]
[321139436,1711908641914,-3000.0,0.00038464,2]
[321139438,1711908641923,-300.0,0.00038809,5]
[321139440,1711908641933,-1442.42215343,0.0003881,2]
[321139442,1711908641942,-169.930898,0.00038986,2]
[321139445,1711908641952,-2402.88065659,0.00039,120]
[321139713,1711908643897,-1597.11934341,0.00039,120]
[321139715,1711908643906,-623.18286532,0.00039686,2]
[321139717,1711908643915,-178.854797,0.0004,2]
[321139719,1711908643925,-3762.28974876,0.0004013,2]
[321139726,1711908643981,-905.47657665,0.0004013,2]
[321140051,1711908647230,-0.29735673,0.0003861,2]
[321146387,1711908792243,-435.0,0.000369,2]
[321146388,1711908857503,-2842.57880921,0.00036531,2]
[321146389,1711908857524,-30.86132823,0.000369,2]
[321146390,1711908857543,-449.55986256,0.000369,4]
[321146391,1711908869853,-200.80874692,0.00083241,120]
[321146392,1711908869876,-151.98312647,0.00083241,120]
[321146393,1711908869900,-151.98312647,0.00083241,120]
[321146411,1711909467765,280.0,0.00039023,120]
[321146415,1711909504190,5000.0,0.0004,5]
[321146420,1711909640119,-410.57421882,0.000379,2]
[321146421,1711909640140,-187.70857331,0.0003851,2]
[321146422,1711909640162,-52.78281678,0.00038633,2]
[321146423,1711909750103,-187.70857331,0.00038533,2]
[321146424,1711909750125,-412.86518168,0.00038633,2]
[321146425,1711909750145,-1643.1127093,0.00038668,2]
[321146426,1711909750165,-1381.7232631,0.00038727,2]
[321146427,1711909750185,-1039.195373,0.00038858,2]
[321146428,1711909750205,-628.1476084,0.00038978,2]
[321146429,1711909750224,-197.0047942,0.00039011,2]
[321146430,1711909750244,-158.948034,0.0004,2]
[321146431,1711909750263,-1655.6957623,0.00040029,2]
[321146432,1711909774121,-1162.266735,0.00040029,2]
[321146509,1711909831968,-161.818688,0.0004,2]
[321146512,1711909831978,-157.33336488,0.00040029,2]
[321146514,1711909831987,-678.71192486,0.00040029,2]
[321146515,1711909831997,-329.0,0.00040122,5]
[321146517,1711909832006,-361.0,0.00040124,2]
[321146519,1711909832015,-500.0,0.00040129,31]
[321146521,1711909832024,-500.0,0.00040129,31]
[321146523,1711909832036,-18.35675043,0.00040129,31]
[321146572,1711909838140,-410.80896699,0.00040129,31]
[321146575,1711909838151,-70.83428258,0.00040129,31]
[321146577,1711909838160,-500.0,0.00040129,31]
[321146579,1711909838169,-500.0,0.00040129,31]
[321146581,1711909838178,-500.0,0.00040129,31]
[321146583,1711909838187,-500.0,0.00040129,31]
[321146585,1711909838197,-500.0,0.00040129,31]
[321146587,1711909838206,-500.0,0.00040129,31]
[321146589,1711909838216,-500.0,0.00040129,31]
[321146591,1711909838225,-500.0,0.00040129,31]
[321146593,1711909838233,-99.60549484,0.00040129,31]
[321146601,1711909838304,-400.39450516,0.00040129,31]
[321146603,1711909838313,-19.82856032,0.00040129,31]
[321146605,1711909838325,-480.17143968,0.00040129,31]
[321146607,1711909838334,-500.0,0.00040129,31]
[321146609,1711909838344,-500.0,0.00040129,31]
[321146611,1711909838353,-500.0,0.00040129,31]
[321146613,1711909838362,-500.0,0.00040129,31]
[321146616,1711909838371,-500.0,0.00040129,31]
[321146618,1711909838380,-500.0,0.00040129,31]
[321146619,1711909838389,-500.0,0.00040129,31]
[321146621,1711909838399,-500.0,0.00040129,31]
[321146623,1711909838408,-500.0,0.00040129,31]
[321146625,1711909838417,-500.0,0.00040129,31]
[321146628,1711909838427,-500.0,0.00040129,31]
[321146630,1711909838436,-190.71307149,0.00040129,31]
[321146632,1711909838446,-500.0,0.00040129,31]
[321146634,1711909838455,-500.0,0.00040129,31]
[321146635,1711909838465,-500.0,0.00040129,31]
[321146637,1711909838474,-500.0,0.00040129,31]
[321146639,1711909838483,-500.0,0.00040129,31]
[321146641,1711909838492,-500.0,0.00040129,31]
[321146643,1711909838501,-500.0,0.00040129,31]
[321146655,1711909838591,-500.0,0.00040129,31]
[321146657,1711909838600,-500.0,0.00040129,31]
[321146659,1711909838609,-32510.17516251,0.0004013,2]
[321146661,1711909838621,-10326.18264796,0.0004013,2]
[321146663,1711909838630,-1170.10560406,0.000404,2]
[321146665,1711909838639,-1452.94721261,0.000405,10]
[321146667,1711909838649,-1453.09236218,0.000405,10]
[321146669,1711909838658,-2219.152121,0.0004075,2]
[321146671,1711909838668,-177.1312925,0.00041096,2]
[321146673,1711909838677,-166.666666,0.00041096,2]
[321146675,1711909838685,-166.666666,0.00042058,2]
[321146677,1711909838695,-410.57421882,0.000429,2]
[321146679,1711909838704,-1574.026147,0.0004293,14]
[321146681,1711909838713,-1574.18339237,0.0004293,14]
[321146683,1711909838722,-166.666666,0.00043019,2]
[321146685,1711909838731,-166.666666,0.00043981,2]
[321146687,1711909838740,-166.666666,0.00044942,2]
[321146689,1711909838750,-1574.18339237,0.0004536,14]
[321146691,1711909838759,-166.666666,0.00045904,2]
[321146693,1711909838768,-1000.0,0.0004663,30]
[321146695,1711909838777,-1170.10560402,0.00046775,2]
[321146697,1711909838785,-197.0,0.00047,90]
[321146699,1711909838796,-1212.0,0.0004726,60]
[321146701,1711909838806,-162.74442572,0.0004779,18]
[321146703,1711909838815,-1695.27442255,0.0004779,18]
[321146706,1711909838827,-160.0,0.00049999,60]
[321146707,1711909838837,-539.67211552,0.0005,2]
[321146710,1711909838846,-5858.34625685,0.0005,2]
[321146712,1711909838858,-49645.17931533,0.0005,2]
[321146714,1711909838867,-1695.27442255,0.0005022,18]
[321146716,1711909838876,-1816.36545273,0.0005265,22]
[321146718,1711909838885,-1170.10560402,0.0005315,2]
[321146720,1711909838894,-1039.195373,0.00058288,30]
[321146722,1711909838903,-169.37105028,0.0005876,2]
[321146724,1711909838912,-1170.10560402,0.00059525,2]
[321146726,1711909838921,-178.854797,0.00064247,2]
[321146727,1711909838930,-1170.10560402,0.000659,2]
[321146729,1711909838940,-1900.0,0.00066,4]
[321146731,1711909838949,-10000.0,0.000685,60]
[321146733,1711909838958,-2099.67800187,0.0007,2]
[321146735,1711909838969,-1064.81058231,0.0007,2]
[321147032,1711909843609,-361.0,0.0004013,2]
[321147033,1711909843619,-361.0,0.0004313,2]
[321147034,1711909843628,-361.0,0.0004613,2]
[321147035,1711909843637,-4343.32397937,0.0007,2]
[321147037,1711909843646,-155.126046,0.00070673,120]
[321147038,1711909843655,-432.939566,0.00070673,120]
[321147039,1711909843663,-432.939566,0.00070673,120]
[321147040,1711909843672,-432.939566,0.00070673,120]
[321147041,1711909843681,-432.939566,0.00070673,120]
[321147042,1711909843690,-178.290232,0.00070673,120]
[321147043,1711909843699,-151.0,0.00070673,120]
[321147044,1711909843708,-151.0,0.00070673,120]
[321147045,1711909843717,-152.585039,0.00070673,120]
[321147046,1711909843728,-680.130651,0.00070673,10]
[321147047,1711909843738,-680.130651,0.00070673,10]
[321147048,1711909843747,-151.0,0.00070673,120]
[321147049,1711909843756,-200.729948,0.00070673,120]
[321147050,1711909843765,-200.729948,0.00070673,120]
[321147051,1711909843774,-151.0,0.00070673,120]
[321147052,1711909843783,-151.0,0.00070673,120]
[321147053,1711909843792,-151.0,0.00070673,120]
[321147054,1711909843802,-613.141479,0.00070673,120]
[321147055,1711909843811,-151.768486,0.00070673,120]
[321147056,1711909843820,-613.141479,0.00070673,120]
[321147057,1711909843829,-189.102796,0.00070673,120]
[321147058,1711909843838,-189.102796,0.00070673,120]
[321147059,1711909843849,-25739.1775243,0.00070673,2]
[321147060,1711909843858,-2138.75,0.00072,40]
[321147061,1711909843868,-158.948034,0.00072329,2]
[321147062,1711909843877,-161.818688,0.00072329,2]
[321147063,1711909843886,-1106.0,0.00075425,60]
[321147064,1711909843896,-176.88356562,0.0007671,90]
[321147065,1711909843905,-1212.97289264,0.00076711,61]
[321147066,1711909843914,-6468.77,0.00076711,30]
[321147067,1711909843924,-6468.77,0.00076711,30]
[321147068,1711909843934,-6468.77,0.00076711,30]
[321147069,1711909843943,-6468.77,0.00076711,30]
[321147070,1711909843954,-6468.77,0.00076711,30]
[321147071,1711909843963,-6468.77,0.00076711,30]
[321147072,1711909843973,-6468.77,0.00076711,30]
[321147073,1711909843983,-6468.77,0.00076711,30]
[321147074,1711909843992,-6468.77,0.00076711,30]
[321147075,1711909844001,-6468.77,0.00076711,30]
[321147076,1711909844010,-432.939566,0.00076711,120]
[321147077,1711909844019,-432.939566,0.00076711,120]
[321147078,1711909844029,-432.939566,0.00076711,120]
[321147079,1711909844041,-432.939566,0.00076711,120]
[321147080,1711909844050,-432.939566,0.00076711,120]
[321147081,1711909844059,-432.939566,0.00076711,120]
[321147082,1711909844069,-151.0,0.00076711,120]
[321147083,1711909844079,-151.0,0.00076711,120]
[321147084,1711909844090,-151.0,0.00076711,120]
[321147085,1711909844099,-680.130651,0.00076711,10]
[321147086,1711909844109,-680.130651,0.00076711,10]
[321147087,1711909844119,-680.130651,0.00076711,10]
[321147088,1711909844129,-680.130651,0.00076711,10]
[321147089,1711909844138,-680.130651,0.00076711,10]
[321147090,1711909844147,-680.130651,0.00076711,10]
[321147091,1711909844156,-151.0,0.00076711,120]
[321147092,1711909844166,-151.0,0.00076711,120]
[321147093,1711909844176,-151.0,0.00076711,120]
[321147094,1711909844187,-200.729948,0.00076711,120]
[321147095,1711909844196,-200.729948,0.00076711,120]
[321147096,1711909844206,-200.729948,0.00076711,120]
[321147097,1711909844216,-200.729948,0.00076711,120]
[321147098,1711909844226,-200.729948,0.00076711,120]
[321147099,1711909844236,-200.729948,0.00076711,120]
[321147100,1711909844246,-151.0,0.00076711,120]
[321147101,1711909844255,-151.0,0.00076711,120]
[321147102,1711909844264,-151.0,0.00076711,120]
[321147103,1711909844274,-151.0,0.00076711,120]
[321147104,1711909844283,-151.0,0.00076711,120]
[321147105,1711909844292,-151.0,0.00076711,120]
[321147106,1711909844302,-151.0,0.00076711,120]
[321147107,1711909844312,-151.0,0.00076711,120]
[321147108,1711909844322,-155.433122,0.00076711,120]
[321147109,1711909844331,-613.141479,0.00076711,120]
[321147110,1711909844340,-613.141479,0.00076711,120]
[321147111,1711909844350,-613.141479,0.00076711,120]
[321147112,1711909844359,-613.141479,0.00076711,120]
[321147113,1711909844369,-613.141479,0.00076711,120]
[321147114,1711909844378,-613.141479,0.00076711,120]
[321147115,1711909844387,-189.102796,0.00076711,120]
[321147116,1711909844397,-189.102796,0.00076711,120]
[321147117,1711909844407,-189.102796,0.00076711,120]
[321147118,1711909844416,-189.102796,0.00076711,120]
[321147119,1711909844425,-189.102796,0.00076711,120]
[321147120,1711909844434,-189.102796,0.00076711,120]
[321147121,1711909844444,-151.0,0.00076711,120]
[321147122,1711909844454,-151.0,0.00076711,120]
[321147123,1711909844464,-151.0,0.00076711,120]
[321147124,1711909844473,-506.64055552,0.00076712,120]
[321147125,1711909844552,-505.46417616,0.00076712,120]
[321147126,1711909844567,-217.05369,0.00076712,120]
[321147127,1711909844577,-501.68842196,0.00076712,120]
[321147128,1711909844586,-503.50340261,0.00076712,120]
[321147129,1711909844595,-500.0,0.00076712,7]
[321147130,1711909844605,-576.79076949,0.00076712,120]
[321147131,1711909844614,-500.0,0.00076712,120]
[321147132,1711909844623,-501.49515567,0.00076712,120]
[321147133,1711909844632,-502.65555419,0.00076712,120]
[321147134,1711909844641,-502.41504639,0.00076712,120]
[321147135,1711909844650,-500.0,0.00076712,120]
[321147136,1711909844660,-502.21436465,0.00076712,120]
[321147137,1711909844670,-501.50296799,0.00076712,120]
[321147138,1711909844679,-501.14398219,0.00076712,120]
[321147139,1711909844689,-500.0,0.00076712,120]
[321147140,1711909844699,-500.0,0.00076712,120]
[321147141,1711909844708,-501.20985029,0.00076712,120]
[321147142,1711909844716,-500.0,0.00076712,120]
[321147143,1711909844726,-150.411119,0.00076712,120]
[321147144,1711909844735,-500.0,0.00076712,120]
[321147145,1711909844746,-500.0,0.00076712,120]
[321147146,1711909844755,-500.47794339,0.00076712,120]
[321147147,1711909844765,-501.64650188,0.00076712,120]
[321147148,1711909844774,-500.0,0.00076712,120]
[321147149,1711909844783,-500.80548867,0.00076712,120]
[321147150,1711909844791,-501.79840784,0.00076712,120]
[321147151,1711909844800,-500.0,0.00076712,120]
[321147152,1711909844809,-433.30499578,0.00076712,120]
[321147153,1711909844818,-500.0,0.00076712,120]
[321147154,1711909844827,-502.35335263,0.00076712,120]
[321147155,1711909844836,-151.0,0.00076712,120]
[321147156,1711909844845,-500.0,0.00076712,120]
[321147157,1711909844855,-829.66,0.00076712,120]
[321147158,1711909844864,-3524.89,0.00076712,120]
[321147159,1711909844873,-500.0,0.00076712,120]
[321147160,1711909844882,-640.13968215,0.00076712,120]
[321147161,1711909844891,-500.0,0.00076712,120]
[321147162,1711909844900,-500.0,0.00076712,120]
[321147163,1711909844910,-500.98421336,0.00076712,120]
[321147164,1711909844919,-222.9731567,0.00076712,120]
[321147165,1711909844928,-500.0,0.00076712,120]
[321147166,1711909844938,-500.0,0.00076712,120]
[321147167,1711909844947,-500.0,0.00076712,120]
[321147168,1711909844957,-501.8493089,0.00076712,120]
[321147169,1711909844966,-500.0,0.00076712,120]
[321147170,1711909844975,-503.25777059,0.00076712,120]
[321147171,1711909844984,-500.01866869,0.00076712,120]
[321147172,1711909844993,-500.0,0.00076712,120]
[321147173,1711909845003,-500.0,0.00076712,120]
[321147174,1711909845012,-500.0,0.00076712,120]
[321147175,1711909845021,-500.0,0.00076712,120]
[321147176,1711909845030,-415.9068613,0.00076712,120]
[321147177,1711909845043,-500.0,0.00076712,120]
[321147178,1711909845053,-500.0,0.00076712,120]
[321147179,1711909845062,-500.0,0.00076712,120]
[321147180,1711909845071,-500.32182603,0.00076712,120]
[321147181,1711909845081,-500.0,0.00076712,120]
[321147182,1711909845091,-514.09685103,0.00076712,120]
[321147183,1711909845100,-500.0,0.00076712,120]
[321147184,1711909845110,-500.0,0.00076712,120]
[321147185,1711909845119,-500.0,0.00076712,120]
[321147186,1711909845128,-500.0,0.00076712,120]
[321147187,1711909845138,-500.0,0.00076712,120]
[321147188,1711909845147,-501.24574608,0.00076712,120]
[321147189,1711909845157,-500.0,0.00076712,120]
[321147190,1711909845166,-575.87509311,0.00076712,120]
[321147191,1711909845175,-1776.86,0.00076712,120]
[321147192,1711909845185,-501.16542471,0.00076712,120]
[321147193,1711909845194,-500.0,0.00076712,120]
[321147194,1711909845204,-500.0,0.00076712,120]
[321147195,1711909845215,-500.0,0.00076712,120]
[321147196,1711909845224,-500.0,0.00076712,120]
[321147197,1711909845232,-500.0,0.00076712,120]
[321147198,1711909845241,-227.01758838,0.00076712,120]
[321147199,1711909845250,-589.48235148,0.00076712,120]
[321147200,1711909845259,-503.80782035,0.00076712,120]
[321147201,1711909845269,-500.0,0.00076712,120]
[321147202,1711909845278,-500.0,0.00076712,120]
[321147203,1711909845288,-500.0,0.00076712,120]
[321147204,1711909845297,-500.0,0.00076712,120]
[321147205,1711909845306,-500.0,0.00076712,120]
[321147206,1711909845316,-500.0,0.00076712,120]
[321147207,1711909845325,-500.0,0.00076712,120]
[321147208,1711909845334,-403.67588912,0.00076712,120]
[321147209,1711909845343,-503.8561811,0.00076712,120]
[321147210,1711909845352,-500.0,0.00076712,120]
[321147211,1711909845361,-504.68729692,0.00076712,120]
[321147212,1711909845370,-500.0,0.00076712,120]
[321147214,1711909845380,-500.0,0.00076712,120]
[321147216,1711909845389,-500.0,0.00076712,120]
[321147218,1711909845398,-500.66900747,0.00076712,120]
[321147219,1711909845407,-500.0,0.00076712,120]
[321147221,1711909845416,-500.20687831,0.00076712,120]
[321147222,1711909845426,-500.74034514,0.00076712,120]
[321147223,1711909845435,-500.0,0.00076712,120]
[321147224,1711909845445,-500.0,0.00076712,120]
[321147225,1711909845455,-500.0,0.00076712,120]
[321147227,1711909845464,-501.80032263,0.00076712,120]
[321147228,1711909845473,-500.0,0.00076712,120]
[321147230,1711909845482,-351.6316527,0.00076712,120]
[321147232,1711909845492,-500.0,0.00076712,120]